[Event "Titled Tuesday Blitz June 6 Early 2023"]
[White "Principe, Alexander"]
[Black "Larina, Maria"]
[WhiteFideId "3804542"]
[BlackFideId "24113182"]
[WhiteElo "2203"]
[BlackElo "1848"]
[Result "1-0"]
[Round "2"]
[TimeControl "180+2"]
[Date "2023.06.06"]
[WhiteClock "0:00:16"]
[BlackClock "0:00:07"]
[Board "184"]

1. e4 {[%clk 0:02:31]}  c6 {[%clk 0:02:57]} 2. d4 {[%clk 0:02:31]}  d5 {[%clk 0:02:58]} 3. Nc3 {[%clk 0:02:32]}  dxe4 {[%clk 0:02:58]} 4. Nxe4 {[%clk 0:02:32]}  Nf6 {[%clk 0:02:58]} 5. Nxf6+ {[%clk 0:02:32]}  exf6 {[%clk 0:02:59]} 6. c3 {[%clk 0:02:33]}  Bd6 {[%clk 0:02:59]} 7. Bd3 {[%clk 0:02:34]}  O-O {[%clk 0:02:59]} 8. Qc2 {[%clk 0:02:35]}  Re8+ {[%clk 0:03:00]} 9. Ne2 {[%clk 0:02:35]}  h5 {[%clk 0:03:00]} 10. Bd2 {[%clk 0:02:34]}  Nd7 {[%clk 0:03:00]} 11. O-O-O {[%clk 0:02:34]}  Nf8 {[%clk 0:03:00]} 12. Rde1 {[%clk 0:02:31]}  Be6 {[%clk 0:02:59]} 13. Nf4 {[%clk 0:02:31]}  Bxf4 {[%clk 0:02:58]} 14. Bxf4 {[%clk 0:02:31]}  Qd5 {[%clk 0:02:59]} 15. b3 {[%clk 0:02:29]}  a5 {[%clk 0:02:58]} 16. Be4 {[%clk 0:02:20]}  Qd7 {[%clk 0:02:57]} 17. f3 {[%clk 0:02:18]}  a4 {[%clk 0:02:57]} 18. b4 {[%clk 0:02:18]}  Ng6 {[%clk 0:02:49]} 19. Bd2 {[%clk 0:02:00]}  f5 {[%clk 0:02:37]} 20. Bd3 {[%clk 0:02:00]}  Qd5 {[%clk 0:02:26]} 21. Kb1 {[%clk 0:01:58]}  b6 {[%clk 0:02:23]} 22. Re2 {[%clk 0:01:17]}  c5 {[%clk 0:02:22]} 23. Rhe1 {[%clk 0:01:17]}  cxd4 {[%clk 0:02:13]} 24. c4 {[%clk 0:01:17]}  Qd6 {[%clk 0:02:04]} 25. a3 {[%clk 0:01:12]}  Rec8 {[%clk 0:02:01]} 26. Kb2 {[%clk 0:01:12]}  b5 {[%clk 0:01:56]} 27. c5 {[%clk 0:01:12]}  Qd5 {[%clk 0:01:56]} 28. Rxe6 {[%clk 0:01:08]}  fxe6 {[%clk 0:01:54]} 29. Bxb5 {[%clk 0:01:09]}  Ne5 {[%clk 0:01:24]} 30. Bf4 {[%clk 0:00:57]}  Nc6 {[%clk 0:01:06]} 31. Bc4 {[%clk 0:00:56]}  Qd8 {[%clk 0:00:50]} 32. Bxe6+ {[%clk 0:00:30]}  Kh8 {[%clk 0:00:50]} 33. Qxf5 {[%clk 0:00:31]}  Qh4 {[%clk 0:00:14]} 34. Bg3 {[%clk 0:00:21]}  Qf6 {[%clk 0:00:15]} 35. Qxh5+ {[%clk 0:00:21]}  Qh6 {[%clk 0:00:15]} 36. Qxh6+ {[%clk 0:00:21]}  gxh6 {[%clk 0:00:15]} 37. Bxc8 {[%clk 0:00:22]}  Rxc8 {[%clk 0:00:15]} 38. Re6 {[%clk 0:00:21]}  Kg7 {[%clk 0:00:15]} 39. Rd6 {[%clk 0:00:20]}  h5 {[%clk 0:00:11]} 40. b5 {[%clk 0:00:20]}  Na5 {[%clk 0:00:11]} 41. Rxd4 {[%clk 0:00:17]}  Rxc5 {[%clk 0:00:11]} 42. Rb4 {[%clk 0:00:17]}  Nc4+ {[%clk 0:00:11]} 43. Ka2 {[%clk 0:00:18]}  Ne3 {[%clk 0:00:10]} 44. b6 {[%clk 0:00:16]}  Nd1 {[%clk 0:00:10]} 45. Be5+ {[%clk 0:00:15]}  Kf7 {[%clk 0:00:09]} 46. b7 {[%clk 0:00:15]}  Rc2+ {[%clk 0:00:09]} 47. Kb1 {[%clk 0:00:16]}  Re2 {[%clk 0:00:07]} 48. b8=Q {[%clk 0:00:16]}  Nc3+ {[%clk 0:00:07]} 49. Bxc3 {[%clk 0:00:16]} 1-0


[Site "https://www.chess.com"]

[Event "Titled Tuesday Blitz June 6 Early 2023"]
[White "rionelG"]
[Black "Gil Alba, Hector Luis"]
[BlackFideId "3504670"]
[WhiteElo "2199"]
[BlackElo "2331"]
[Result "0-1"]
[Round "2"]
[TimeControl "180+2"]
[Date "2023.06.06"]
[WhiteClock "0:00:09"]
[BlackClock "0:01:27"]
[Board "188"]

1. e4 {[%clk 0:00:17]}  c5 {[%clk 0:02:58]} 2. g3 {[%clk 0:00:17]}  Nc6 {[%clk 0:02:58]} 3. Bg2 {[%clk 0:00:18]}  e6 {[%clk 0:02:58]} 4. Ne2 {[%clk 0:00:19]}  d5 {[%clk 0:02:58]} 5. exd5 {[%clk 0:00:19]}  exd5 {[%clk 0:02:58]} 6. O-O {[%clk 0:00:20]}  Nf6 {[%clk 0:02:58]} 7. d4 {[%clk 0:00:21]}  cxd4 {[%clk 0:02:57]} 8. Nxd4 {[%clk 0:00:21]}  Bc5 {[%clk 0:02:57]} 9. Re1+ {[%clk 0:00:20]}  Ne4 {[%clk 0:02:48]} 10. Bxe4 {[%clk 0:00:19]}  dxe4 {[%clk 0:02:47]} 11. Rxe4+ {[%clk 0:00:18]}  Be6 {[%clk 0:02:47]} 12. c3 {[%clk 0:00:18]}  O-O {[%clk 0:02:46]} 13. Be3 {[%clk 0:00:16]}  Bd5 {[%clk 0:02:44]} 14. Rh4 {[%clk 0:00:16]}  Ne5 {[%clk 0:02:41]} 15. Qh5 {[%clk 0:00:15]}  Qxh4 {[%clk 0:02:38]} 16. gxh4 {[%clk 0:00:14]}  Bxd4 {[%clk 0:02:38]} 17. Bxd4 {[%clk 0:00:13]}  Nf3+ {[%clk 0:02:37]} 18. Kf1 {[%clk 0:00:13]}  Rad8 {[%clk 0:02:34]} 19. Na3 {[%clk 0:00:12]}  Rfe8 {[%clk 0:02:27]} 20. Rd1 {[%clk 0:00:12]}  Nxh2+ {[%clk 0:02:18]} 21. Kg1 {[%clk 0:00:11]}  Nf3+ {[%clk 0:02:18]} 22. Kf1 {[%clk 0:00:11]}  Nh2+ {[%clk 0:01:53]} 23. Kg1 {[%clk 0:00:11]}  Nf3+ {[%clk 0:01:51]} 24. Kf1 {[%clk 0:00:11]}  Rd6 {[%clk 0:01:46]} 25. Nc2 {[%clk 0:00:10]}  Nh2+ {[%clk 0:01:38]} 26. Kg1 {[%clk 0:00:09]}  Nf3+ {[%clk 0:01:38]} 27. Kf1 {[%clk 0:00:10]}  Bc6 {[%clk 0:01:38]} 28. Ne3 {[%clk 0:00:09]}  Nh2+ {[%clk 0:01:32]} 29. Ke2 {[%clk 0:00:09]}  Bf3+ {[%clk 0:01:31]} 30. Qxf3 {[%clk 0:00:08]}  Nxf3 {[%clk 0:01:30]} 31. Kxf3 {[%clk 0:00:09]}  f6 {[%clk 0:01:30]} 32. Rg1 {[%clk 0:00:09]}  a6 {[%clk 0:01:27]} 0-1


[Site "https://www.chess.com"]

[Event "Titled Tuesday Blitz June 6 Early 2023"]
[White "Lorenzo De La Riva, Lazaro"]
[Black "Ruge, Edison"]
[WhiteFideId "2268809"]
[BlackFideId "4401000"]
[WhiteElo "2294"]
[BlackElo "2175"]
[Result "1-0"]
[Round "2"]
[TimeControl "180+2"]
[Date "2023.06.06"]
[WhiteClock "0:01:50"]
[BlackClock "0:01:01"]
[Board "189"]

1. d4 {[%clk 0:02:56]}  d5 {[%clk 0:02:53]} 2. Nc3 {[%clk 0:02:52]}  f5 {[%clk 0:02:50]} 3. Bf4 {[%clk 0:02:49]}  c6 {[%clk 0:02:48]} 4. h4 {[%clk 0:02:45]}  Nf6 {[%clk 0:02:48]} 5. e3 {[%clk 0:02:43]}  e6 {[%clk 0:02:48]} 6. Nf3 {[%clk 0:02:41]}  Bd6 {[%clk 0:02:48]} 7. Bd3 {[%clk 0:02:35]}  Qc7 {[%clk 0:02:46]} 8. g3 {[%clk 0:02:34]}  Ne4 {[%clk 0:02:41]} 9. Ne2 {[%clk 0:02:28]}  Nd7 {[%clk 0:02:33]} 10. Bxd6 {[%clk 0:02:27]}  Qxd6 {[%clk 0:02:32]} 11. c4 {[%clk 0:02:21]}  Ndf6 {[%clk 0:02:31]} 12. c5 {[%clk 0:02:15]}  Qc7 {[%clk 0:02:28]} 13. Ne5 {[%clk 0:02:15]}  Qa5+ {[%clk 0:02:19]} 14. Kf1 {[%clk 0:02:13]}  Ng4 {[%clk 0:02:18]} 15. Nxg4 {[%clk 0:02:12]}  fxg4 {[%clk 0:02:11]} 16. Bxe4 {[%clk 0:02:12]}  dxe4 {[%clk 0:02:11]} 17. Nc3 {[%clk 0:02:13]}  O-O {[%clk 0:01:56]} 18. Nxe4 {[%clk 0:02:10]}  Qb5+ {[%clk 0:01:55]} 19. Kg2 {[%clk 0:02:09]}  Qxb2 {[%clk 0:01:55]} 20. Qd3 {[%clk 0:01:56]}  e5 {[%clk 0:01:41]} 21. Rhb1 {[%clk 0:01:54]}  Qxa1 {[%clk 0:01:11]} 22. Rxa1 {[%clk 0:01:54]}  Be6 {[%clk 0:01:11]} 23. Nd6 {[%clk 0:01:53]}  exd4 {[%clk 0:01:06]} 24. e4 {[%clk 0:01:52]}  Rf3 {[%clk 0:01:04]} 25. Qxd4 {[%clk 0:01:52]}  Raf8 {[%clk 0:01:01]} 26. Rb1 {[%clk 0:01:50]} 1-0


[Site "https://www.chess.com"]

[Event "Titled Tuesday Blitz June 6 Early 2023"]
[White "Hristodoulou, Panagiotis"]
[Black "Ciuffoletti, Paolo"]
[WhiteFideId "4214340"]
[BlackFideId "807630"]
[WhiteElo "2272"]
[BlackElo "2143"]
[Result "1-0"]
[Round "2"]
[TimeControl "180+2"]
[Date "2023.06.06"]
[WhiteClock "0:01:36"]
[BlackClock "0:00:03"]
[Board "192"]

1. e4 {[%clk 0:02:50]}  c5 {[%clk 0:02:59]} 2. Nf3 {[%clk 0:02:50]}  Nc6 {[%clk 0:02:59]} 3. d4 {[%clk 0:02:51]}  cxd4 {[%clk 0:02:58]} 4. Nxd4 {[%clk 0:02:52]}  Nf6 {[%clk 0:02:58]} 5. Nc3 {[%clk 0:02:52]}  e5 {[%clk 0:02:58]} 6. Ndb5 {[%clk 0:02:52]}  d6 {[%clk 0:02:59]} 7. Bg5 {[%clk 0:02:50]}  a6 {[%clk 0:02:59]} 8. Na3 {[%clk 0:02:51]}  b5 {[%clk 0:02:58]} 9. Bxf6 {[%clk 0:02:50]}  gxf6 {[%clk 0:02:58]} 10. Nd5 {[%clk 0:02:51]}  f5 {[%clk 0:02:57]} 11. c3 {[%clk 0:02:49]}  Bg7 {[%clk 0:02:53]} 12. exf5 {[%clk 0:02:47]}  Bxf5 {[%clk 0:02:52]} 13. Nc2 {[%clk 0:02:48]}  Be6 {[%clk 0:02:49]} 14. g3 {[%clk 0:02:35]}  Ne7 {[%clk 0:02:45]} 15. Bg2 {[%clk 0:02:35]}  Rc8 {[%clk 0:02:41]} 16. Nce3 {[%clk 0:02:34]}  O-O {[%clk 0:02:39]} 17. O-O {[%clk 0:02:31]}  f5 {[%clk 0:02:30]} 18. Nxe7+ {[%clk 0:02:27]}  Qxe7 {[%clk 0:02:29]} 19. Bd5 {[%clk 0:02:26]}  f4 {[%clk 0:01:56]} 20. Bxe6+ {[%clk 0:02:26]}  Qxe6 {[%clk 0:01:55]} 21. Qd5 {[%clk 0:02:27]}  Qxd5 {[%clk 0:01:31]} 22. Nxd5 {[%clk 0:02:27]}  Rc5 {[%clk 0:01:24]} 23. Rad1 {[%clk 0:02:24]}  fxg3 {[%clk 0:00:58]} 24. hxg3 {[%clk 0:02:19]}  Kf7 {[%clk 0:00:49]} 25. Rd3 {[%clk 0:02:07]}  Ke6 {[%clk 0:00:47]} 26. Rfd1 {[%clk 0:01:59]}  e4 {[%clk 0:00:25]} 27. Nf4+ {[%clk 0:01:51]}  Ke7 {[%clk 0:00:12]} 28. Rxd6 {[%clk 0:01:49]}  Be5 {[%clk 0:00:07]} 29. Re6+ {[%clk 0:01:37]}  Kf7 {[%clk 0:00:04]} 30. Rd7+ {[%clk 0:01:36]}  Kg8 {[%clk 0:00:03]} 31. Nd5 {[%clk 0:01:36]} 1-0


[Site "https://www.chess.com"]

[Event "Titled Tuesday Blitz June 6 Early 2023"]
[White "Pinales Roussel, Gabriel"]
[Black "Grunberg, Mihai-Lucian"]
[WhiteFideId "3101762"]
[BlackFideId "1204149"]
[WhiteElo "2027"]
[BlackElo "2363"]
[Result "0-1"]
[Round "2"]
[TimeControl "180+2"]
[Date "2023.06.06"]
[WhiteClock "0:00:24"]
[BlackClock "0:02:33"]
[Board "193"]

1. d4 {[%clk 0:03:00]}  c5 {[%clk 0:03:00]} 2. d5 {[%clk 0:02:59]}  Nf6 {[%clk 0:03:01]} 3. c4 {[%clk 0:03:00]}  e6 {[%clk 0:03:02]} 4. Nc3 {[%clk 0:03:00]}  exd5 {[%clk 0:03:03]} 5. cxd5 {[%clk 0:03:00]}  d6 {[%clk 0:03:04]} 6. e4 {[%clk 0:03:01]}  a6 {[%clk 0:03:04]} 7. h3 {[%clk 0:02:56]}  b5 {[%clk 0:03:03]} 8. Bd3 {[%clk 0:02:53]}  c4 {[%clk 0:03:03]} 9. Bc2 {[%clk 0:02:53]}  Nbd7 {[%clk 0:03:01]} 10. f4 {[%clk 0:02:51]}  g6 {[%clk 0:02:57]} 11. Nf3 {[%clk 0:02:51]}  Bg7 {[%clk 0:02:57]} 12. O-O {[%clk 0:02:51]}  O-O {[%clk 0:02:57]} 13. e5 {[%clk 0:02:47]}  dxe5 {[%clk 0:02:55]} 14. fxe5 {[%clk 0:02:48]}  Nh5 {[%clk 0:02:54]} 15. Re1 {[%clk 0:02:47]}  Re8 {[%clk 0:02:50]} 16. g4 {[%clk 0:01:54]}  Nxe5 {[%clk 0:02:43]} 17. Nxe5 {[%clk 0:01:49]}  Bxe5 {[%clk 0:02:40]} 18. gxh5 {[%clk 0:01:40]}  Qh4 {[%clk 0:02:40]} 19. Be4 {[%clk 0:01:18]}  Bxh3 {[%clk 0:02:36]} 20. Qd2 {[%clk 0:00:24]}  Qg3+ {[%clk 0:02:33]} 21. Bg2 {[%clk 0:00:24]}  Bxg2 {[%clk 0:02:33]} 0-1


[Site "https://www.chess.com"]

[Event "Titled Tuesday Blitz June 6 Early 2023"]
[White "Kaplan, Avi Harrison"]
[Black "Winkels, Marcel"]
[WhiteFideId "30934559"]
[BlackFideId "1003887"]
[WhiteElo "1983"]
[BlackElo "1900"]
[Result "1-0"]
[Round "2"]
[TimeControl "180+2"]
[Date "2023.06.06"]
[WhiteClock "0:00:12"]
[BlackClock "0:00:04"]
[Board "197"]

1. a4 {[%clk 0:03:00]}  e5 {[%clk 0:02:56]} 2. h4 {[%clk 0:03:00]}  d5 {[%clk 0:02:55]} 3. h5 {[%clk 0:03:00]}  h6 {[%clk 0:02:54]} 4. a5 {[%clk 0:03:00]}  Nf6 {[%clk 0:02:53]} 5. Nf3 {[%clk 0:02:59]}  Nc6 {[%clk 0:02:52]} 6. d4 {[%clk 0:02:58]}  e4 {[%clk 0:02:42]} 7. Ne5 {[%clk 0:02:56]}  Bd6 {[%clk 0:02:37]} 8. Nxc6 {[%clk 0:02:30]}  bxc6 {[%clk 0:02:36]} 9. c4 {[%clk 0:02:27]}  O-O {[%clk 0:02:21]} 10. Nc3 {[%clk 0:02:14]}  Rb8 {[%clk 0:02:11]} 11. c5 {[%clk 0:02:04]}  Be7 {[%clk 0:02:10]} 12. a6 {[%clk 0:01:55]}  Ng4 {[%clk 0:02:02]} 13. Qc2 {[%clk 0:01:45]}  e3 {[%clk 0:01:53]} 14. Bxe3 {[%clk 0:01:42]}  Nxe3 {[%clk 0:01:51]} 15. fxe3 {[%clk 0:01:42]}  Bh4+ {[%clk 0:01:51]} 16. Kd2 {[%clk 0:01:40]}  Bg5 {[%clk 0:01:50]} 17. Ra3 {[%clk 0:01:34]}  Re8 {[%clk 0:01:49]} 18. Nd1 {[%clk 0:01:34]}  Qf6 {[%clk 0:01:46]} 19. Qc3 {[%clk 0:01:21]}  Bf5 {[%clk 0:01:34]} 20. g3 {[%clk 0:01:15]}  Be4 {[%clk 0:01:34]} 21. Rg1 {[%clk 0:01:12]}  Qe7 {[%clk 0:01:18]} 22. Bg2 {[%clk 0:01:07]}  Bh7 {[%clk 0:01:09]} 23. Rf1 {[%clk 0:00:31]}  Rb5 {[%clk 0:01:02]} 24. Rb3 {[%clk 0:00:24]}  Reb8 {[%clk 0:00:50]} 25. Rxb5 {[%clk 0:00:19]}  cxb5 {[%clk 0:00:46]} 26. b4 {[%clk 0:00:20]}  c6 {[%clk 0:00:45]} 27. Bh3 {[%clk 0:00:19]}  Re8 {[%clk 0:00:41]} 28. Bf5 {[%clk 0:00:19]}  Bxf5 {[%clk 0:00:40]} 29. Rxf5 {[%clk 0:00:19]}  Qe6 {[%clk 0:00:40]} 30. Rf3 {[%clk 0:00:19]}  Qg4 {[%clk 0:00:39]} 31. Qd3 {[%clk 0:00:18]}  Qxh5 {[%clk 0:00:35]} 32. Qf5 {[%clk 0:00:17]}  Qg6 {[%clk 0:00:34]} 33. Qxg6 {[%clk 0:00:14]}  fxg6 {[%clk 0:00:34]} 34. Kd3 {[%clk 0:00:15]}  Bf6 {[%clk 0:00:27]} 35. Nf2 {[%clk 0:00:15]}  g5 {[%clk 0:00:26]} 36. Ng4 {[%clk 0:00:15]}  Rf8 {[%clk 0:00:25]} 37. e4 {[%clk 0:00:13]}  dxe4+ {[%clk 0:00:24]} 38. Kxe4 {[%clk 0:00:14]}  Re8+ {[%clk 0:00:23]} 39. Kd3 {[%clk 0:00:14]}  Bd8 {[%clk 0:00:22]} 40. Ne5 {[%clk 0:00:12]}  Be7 {[%clk 0:00:21]} 41. Nxc6 {[%clk 0:00:12]}  Bf6 {[%clk 0:00:17]} 42. Nxa7 {[%clk 0:00:11]}  Re6 {[%clk 0:00:17]} 43. c6 {[%clk 0:00:11]}  Rd6 {[%clk 0:00:16]} 44. c7 {[%clk 0:00:11]}  Rxd4+ {[%clk 0:00:05]} 45. Ke3 {[%clk 0:00:09]}  Rc4 {[%clk 0:00:05]} 46. c8=Q+ {[%clk 0:00:10]}  Rxc8 {[%clk 0:00:05]} 47. Nxc8 {[%clk 0:00:11]}  Kf7 {[%clk 0:00:04]} 48. a7 {[%clk 0:00:12]} 1-0


[Site "https://www.chess.com"]

[Event "Titled Tuesday Blitz June 6 Early 2023"]
[White "Lisjak, Zlatko"]
[Black "Buchenau, Frank"]
[WhiteFideId "14502186"]
[BlackFideId "4604350"]
[WhiteElo "1998"]
[BlackElo "2157"]
[Result "0-1"]
[Round "2"]
[TimeControl "180+2"]
[Date "2023.06.06"]
[WhiteClock "0:00:02"]
[BlackClock "0:00:56"]
[Board "198"]

1. d4 {[%clk 0:03:00]}  e6 {[%clk 0:02:52]} 2. Nc3 {[%clk 0:02:57]}  Nf6 {[%clk 0:02:50]} 3. Bf4 {[%clk 0:02:56]}  d5 {[%clk 0:02:49]} 4. e3 {[%clk 0:02:53]}  a6 {[%clk 0:02:49]} 5. Nf3 {[%clk 0:02:43]}  c5 {[%clk 0:02:49]} 6. dxc5 {[%clk 0:02:43]}  Bxc5 {[%clk 0:02:48]} 7. Bd3 {[%clk 0:02:44]}  Nc6 {[%clk 0:02:48]} 8. O-O {[%clk 0:02:43]}  O-O {[%clk 0:02:48]} 9. e4 {[%clk 0:02:43]}  d4 {[%clk 0:02:48]} 10. Ne2 {[%clk 0:02:32]}  Nh5 {[%clk 0:02:43]} 11. Bd2 {[%clk 0:02:21]}  e5 {[%clk 0:02:43]} 12. a3 {[%clk 0:02:19]}  Bg4 {[%clk 0:02:41]} 13. Ng3 {[%clk 0:01:55]}  Nf4 {[%clk 0:02:40]} 14. Bc4 {[%clk 0:01:43]}  Qf6 {[%clk 0:02:37]} 15. h3 {[%clk 0:01:38]}  Nxh3+ {[%clk 0:02:36]} 16. Kh2 {[%clk 0:01:27]}  Nf4 {[%clk 0:02:31]} 17. Rh1 {[%clk 0:01:17]}  h5 {[%clk 0:02:24]} 18. Kg1 {[%clk 0:00:29]}  h4 {[%clk 0:02:24]} 19. Nf1 {[%clk 0:00:19]}  h3 {[%clk 0:02:24]} 20. g3 {[%clk 0:00:13]}  Ng2 {[%clk 0:02:14]} 21. N1h2 {[%clk 0:00:13]}  Bh5 {[%clk 0:02:05]} 22. g4 {[%clk 0:00:10]}  Bg6 {[%clk 0:01:54]} 23. Bg5 {[%clk 0:00:08]}  Qd6 {[%clk 0:01:52]} 24. Qe2 {[%clk 0:00:05]}  d3 {[%clk 0:01:49]} 25. cxd3 {[%clk 0:00:03]}  Nd4 {[%clk 0:01:46]} 26. Nxd4 {[%clk 0:00:03]}  Qxd4 {[%clk 0:01:40]} 27. Rf1 {[%clk 0:00:03]}  Nf4 {[%clk 0:01:23]} 28. Bxf4 {[%clk 0:00:02]}  exf4 {[%clk 0:01:24]} 29. Nf3 {[%clk 0:00:02]}  Qd7 {[%clk 0:01:21]} 30. Rxh3 {[%clk 0:00:02]}  Qxg4+ {[%clk 0:01:21]} 31. Kh2 {[%clk 0:00:02]}  Rfd8 {[%clk 0:01:07]} 32. Rg1 {[%clk 0:00:02]}  Bh5 {[%clk 0:00:56]} 0-1


[Site "https://www.chess.com"]

[Event "Titled Tuesday Blitz June 6 Early 2023"]
[White "Schain, Randolph"]
[Black "Miszler, Levente"]
[WhiteFideId "2003139"]
[BlackFideId "763276"]
[WhiteElo "2123"]
[BlackElo "2176"]
[Result "0-1"]
[Round "2"]
[TimeControl "180+2"]
[Date "2023.06.06"]
[WhiteClock "0:00:38"]
[BlackClock "0:01:47"]
[Board "199"]

1. e4 {[%clk 0:03:00]}  c6 {[%clk 0:02:57]} 2. d4 {[%clk 0:03:00]}  d5 {[%clk 0:02:58]} 3. e5 {[%clk 0:02:59]}  Bf5 {[%clk 0:02:56]} 4. Nf3 {[%clk 0:02:59]}  c5 {[%clk 0:02:56]} 5. c3 {[%clk 0:02:55]}  Nc6 {[%clk 0:02:56]} 6. Bd3 {[%clk 0:02:47]}  Bxd3 {[%clk 0:02:52]} 7. Qxd3 {[%clk 0:02:47]}  e6 {[%clk 0:02:53]} 8. O-O {[%clk 0:02:47]}  f6 {[%clk 0:02:53]} 9. Re1 {[%clk 0:02:45]}  f5 {[%clk 0:02:53]} 10. Be3 {[%clk 0:02:35]}  b6 {[%clk 0:02:52]} 11. Nbd2 {[%clk 0:02:33]}  Rc8 {[%clk 0:02:51]} 12. Rac1 {[%clk 0:02:32]}  c4 {[%clk 0:02:41]} 13. Qc2 {[%clk 0:02:26]}  Nge7 {[%clk 0:02:36]} 14. Bg5 {[%clk 0:02:25]}  h6 {[%clk 0:02:35]} 15. Bxe7 {[%clk 0:02:23]}  Bxe7 {[%clk 0:02:35]} 16. Nf1 {[%clk 0:02:20]}  O-O {[%clk 0:02:35]} 17. Ng3 {[%clk 0:02:19]}  b5 {[%clk 0:02:35]} 18. a3 {[%clk 0:02:09]}  a5 {[%clk 0:02:34]} 19. Ra1 {[%clk 0:02:09]}  Ra8 {[%clk 0:02:34]} 20. Qd2 {[%clk 0:02:07]}  Bg5 {[%clk 0:02:29]} 21. Qe2 {[%clk 0:01:59]}  b4 {[%clk 0:02:28]} 22. axb4 {[%clk 0:01:54]}  axb4 {[%clk 0:02:29]} 23. h3 {[%clk 0:01:43]}  Be7 {[%clk 0:02:24]} 24. Nh5 {[%clk 0:01:41]}  Qb6 {[%clk 0:02:21]} 25. Nf4 {[%clk 0:01:39]}  Na5 {[%clk 0:02:17]} 26. Ng6 {[%clk 0:01:35]}  Rfe8 {[%clk 0:02:15]} 27. Nxe7+ {[%clk 0:01:35]}  Rxe7 {[%clk 0:02:16]} 28. Nh4 {[%clk 0:01:35]}  Rea7 {[%clk 0:02:12]} 29. Qh5 {[%clk 0:01:24]}  Qb7 {[%clk 0:02:06]} 30. Re3 {[%clk 0:01:21]}  bxc3 {[%clk 0:02:04]} 31. bxc3 {[%clk 0:01:20]}  Qf7 {[%clk 0:02:03]} 32. Qxf7+ {[%clk 0:01:09]}  Kxf7 {[%clk 0:02:04]} 33. Re2 {[%clk 0:01:05]}  Nb3 {[%clk 0:02:04]} 34. Rxa7+ {[%clk 0:01:04]}  Rxa7 {[%clk 0:02:05]} 35. Nf3 {[%clk 0:01:04]}  Ra1+ {[%clk 0:02:04]} 36. Kh2 {[%clk 0:01:04]}  Rc1 {[%clk 0:02:04]} 37. Re3 {[%clk 0:00:59]}  f4 {[%clk 0:02:04]} 38. Re2 {[%clk 0:00:55]}  Rxc3 {[%clk 0:02:05]} 39. Ra2 {[%clk 0:00:55]}  Rd3 {[%clk 0:01:59]} 40. Ra7+ {[%clk 0:00:50]}  Kg6 {[%clk 0:01:59]} 41. Nh4+ {[%clk 0:00:49]}  Kh7 {[%clk 0:01:58]} 42. Nf3 {[%clk 0:00:48]}  c3 {[%clk 0:01:57]} 43. Rc7 {[%clk 0:00:48]}  Na5 {[%clk 0:01:47]} 44. Ne1 {[%clk 0:00:44]}  Rd1 {[%clk 0:01:46]} 45. Nd3 {[%clk 0:00:42]}  Nc4 {[%clk 0:01:47]} 46. Nxf4 {[%clk 0:00:39]}  c2 {[%clk 0:01:47]} 47. Ne2 {[%clk 0:00:38]}  Re1 {[%clk 0:01:47]} 0-1


[Site "https://www.chess.com"]

[Event "Titled Tuesday Blitz June 6 Early 2023"]
[White "Szyszylo, Rafal"]
[Black "Naguleswaran, Annorjan"]
[WhiteFideId "1109626"]
[BlackFideId "2093197"]
[WhiteElo "1951"]
[BlackElo "2106"]
[Result "0-1"]
[Round "2"]
[TimeControl "180+2"]
[Date "2023.06.06"]
[WhiteClock "0:00:01"]
[BlackClock "0:00:03"]
[Board "200"]

1. e4 {[%clk 0:02:16]}  e5 {[%clk 0:02:59]} 2. Bc4 {[%clk 0:02:14]}  Nf6 {[%clk 0:02:59]} 3. Nc3 {[%clk 0:02:13]}  Nxe4 {[%clk 0:02:58]} 4. Qh5 {[%clk 0:02:11]}  Nd6 {[%clk 0:02:53]} 5. Bb3 {[%clk 0:02:12]}  Nc6 {[%clk 0:02:35]} 6. Nb5 {[%clk 0:02:11]}  g6 {[%clk 0:02:29]} 7. Qf3 {[%clk 0:02:06]}  Qe7 {[%clk 0:01:44]} 8. Nxc7+ {[%clk 0:02:02]}  Kd8 {[%clk 0:01:44]} 9. Nxa8 {[%clk 0:02:02]}  b6 {[%clk 0:01:37]} 10. Ne2 {[%clk 0:01:42]}  Bb7 {[%clk 0:01:32]} 11. Qh3 {[%clk 0:01:27]}  Bxa8 {[%clk 0:01:28]} 12. O-O {[%clk 0:01:27]}  Bg7 {[%clk 0:01:27]} 13. d3 {[%clk 0:01:26]}  Nf5 {[%clk 0:01:07]} 14. c3 {[%clk 0:01:17]}  Na5 {[%clk 0:00:40]} 15. Ng3 {[%clk 0:01:09]}  Nh4 {[%clk 0:00:27]} 16. Ne4 {[%clk 0:01:03]}  h6 {[%clk 0:00:18]} 17. f4 {[%clk 0:00:32]}  f5 {[%clk 0:00:18]} 18. g3 {[%clk 0:00:19]}  fxe4 {[%clk 0:00:12]} 19. Qxh4 {[%clk 0:00:19]}  Bf6 {[%clk 0:00:10]} 20. Qg4 {[%clk 0:00:17]}  exd3 {[%clk 0:00:09]} 21. Be3 {[%clk 0:00:13]}  exf4 {[%clk 0:00:06]} 22. Qxf4 {[%clk 0:00:14]}  Bg5 {[%clk 0:00:06]} 23. Qxg5 {[%clk 0:00:04]}  hxg5 {[%clk 0:00:06]} 24. Bd4 {[%clk 0:00:04]}  Rh5 {[%clk 0:00:04]} 25. Rae1 {[%clk 0:00:05]}  Qh7 {[%clk 0:00:04]} 26. Rf8+ {[%clk 0:00:04]}  Kc7 {[%clk 0:00:05]} 27. Be5+ {[%clk 0:00:05]}  Kb7 {[%clk 0:00:05]} 28. Rf2 {[%clk 0:00:02]}  Ka6 {[%clk 0:00:04]} 29. Bc4+ {[%clk 0:00:02]}  Nxc4 {[%clk 0:00:04]} 30. Bd4 {[%clk 0:00:02]}  d2 {[%clk 0:00:03]} 31. Rd1 {[%clk 0:00:02]}  Qe7 {[%clk 0:00:02]} 32. b3 {[%clk 0:00:02]}  Qe4 {[%clk 0:00:03]} 33. Rdxd2 {[%clk 0:00:01]}  Qh1# {[%clk 0:00:03]} 0-1


[Site "https://www.chess.com"]

[Event "Titled Tuesday Blitz June 6 Early 2023"]
[White "Jiang, Brian"]
[Black "Delorme, Alban"]
[WhiteFideId "2627922"]
[BlackFideId "623636"]
[WhiteElo "2431"]
[BlackElo "2196"]
[Result "1-0"]
[Round "2"]
[TimeControl "180+2"]
[Date "2023.06.06"]
[WhiteClock "0:00:22"]
[BlackClock "0:00:02"]
[Board "202"]

1. c4 {[%clk 0:03:00]}  Nf6 {[%clk 0:02:59]} 2. Nc3 {[%clk 0:03:00]}  g6 {[%clk 0:02:59]} 3. d4 {[%clk 0:02:58]}  Bg7 {[%clk 0:02:56]} 4. e4 {[%clk 0:02:59]}  d6 {[%clk 0:02:57]} 5. f3 {[%clk 0:02:59]}  O-O {[%clk 0:02:57]} 6. Be3 {[%clk 0:03:00]}  e5 {[%clk 0:02:52]} 7. d5 {[%clk 0:02:57]}  a5 {[%clk 0:02:52]} 8. Qd2 {[%clk 0:02:56]}  Na6 {[%clk 0:02:53]} 9. g4 {[%clk 0:02:55]}  Nc5 {[%clk 0:02:51]} 10. Nge2 {[%clk 0:02:34]}  Nfd7 {[%clk 0:02:48]} 11. Ng3 {[%clk 0:02:31]}  Qe7 {[%clk 0:02:40]} 12. Be2 {[%clk 0:02:23]}  c6 {[%clk 0:02:39]} 13. h4 {[%clk 0:02:15]}  cxd5 {[%clk 0:02:35]} 14. Nxd5 {[%clk 0:02:15]}  Qd8 {[%clk 0:02:32]} 15. h5 {[%clk 0:02:13]}  Ne6 {[%clk 0:02:26]} 16. Bh6 {[%clk 0:02:04]}  g5 {[%clk 0:01:48]} 17. Bxg7 {[%clk 0:02:00]}  Kxg7 {[%clk 0:01:47]} 18. Nf5+ {[%clk 0:02:00]}  Kh8 {[%clk 0:01:47]} 19. Nxd6 {[%clk 0:01:55]}  Ndc5 {[%clk 0:01:45]} 20. Nf5 {[%clk 0:01:50]}  Nf4 {[%clk 0:01:42]} 21. Nxf4 {[%clk 0:01:46]}  gxf4 {[%clk 0:01:41]} 22. Qc3 {[%clk 0:01:41]}  Qc7 {[%clk 0:01:39]} 23. Rd1 {[%clk 0:01:31]}  Bxf5 {[%clk 0:01:38]} 24. exf5 {[%clk 0:01:21]}  Rad8 {[%clk 0:01:39]} 25. O-O {[%clk 0:01:18]}  Rxd1 {[%clk 0:01:25]} 26. Rxd1 {[%clk 0:01:17]}  f6 {[%clk 0:01:17]} 27. Qd2 {[%clk 0:01:03]}  e4 {[%clk 0:01:04]} 28. Qd6 {[%clk 0:01:02]}  Qc8 {[%clk 0:00:48]} 29. h6 {[%clk 0:00:43]}  Nd3 {[%clk 0:00:23]} 30. Rxd3 {[%clk 0:00:26]}  exd3 {[%clk 0:00:22]} 31. Qe7 {[%clk 0:00:22]}  Qc5+ {[%clk 0:00:03]} 32. Qxc5 {[%clk 0:00:22]}  dxe2 {[%clk 0:00:02]} 33. Qxf8# {[%clk 0:00:22]} 1-0


[Site "https://www.chess.com"]